Cogmind - Beta 16.1 @@@ ROGUE MODE // 2026.01.24 @ 21:28:29 Player: szymekc Result: Destroyed by Y-45 Defender with Heavy Assault Rifle Performance ------------- Evolutions (1) 500 Regions Visited (3) 600 Robots Destroyed (2) 10 Value Destroyed (28) 28 Prototype IDs (1) 20 Alien Tech Used (0) 0 Bonus (200) 200 TOTAL SCORE: 1358 Bonus ------- Pacifist 200 Cogmind --------- Core Integrity 0/400 Matter 264/300 Energy 100/100 System Corruption 0% Temperature Cool (9) Movement Core (50) Location -9/Storage Parts ------- > --- POWER (1) -------- (None) > --- PROPULSION (3) --- (None) > --- UTILITY (3) ------ (None) > --- WEAPON (2) ------- (None) > --- INVENTORY (5) ---- Sensor Array Signal Interpreter Light Regenerative Plating Precision Rocket Launcher Peak State ------------ > --- POWER ------------ (None) > --- PROPULSION ------- (None) > --- UTILITY ---------- (None) > --- WEAPON ----------- Precision Rocket Launcher Hammer > --- INVENTORY -------- Sensor Array Signal Interpreter [Rating: 7] Favorites ----------- Power None Propulsion None Utility None Weapon Hammer Launcher Precision Rocket Launcher Impact Weapon Hammer Build | -11 -10 -9 -9 ------- Run | Yrd Mat Mat Sto Slots Evolved 2 | . . 2 . Power . | . . . . Propulsion 1 | . . 1 . Utility 1 | . . 1 . Weapon . | . . . . Parts Attached 2 | . . 1 1 Power . | . . . . Engine . | . . . . Core . | . . . . Reactor . | . . . . Propulsion . | . . . . Treads . | . . . . Leg . | . . . . Wheel . | . . . . Hover . | . . . . Flight . | . . . . Utility . | . . . . Device . | . . . . Storage . | . . . . Processor . | . . . . Hackware . | . . . . Protection . | . . . . Artifact . | . . . . Weapon 2 | . . 1 1 Energy Gun . | . . . . Energy Cannon . | . . . . Ballistic Gun . | . . . . Ballistic Cannon . | . . . . Launcher 1 | . . . 1 Special Weapon . | . . . . Impact Weapon 1 | . . 1 . Slashing Weapon . | . . . . Piercing Weapon . | . . . . Special Melee Weapon . | . . . . Unidentified Prototypes 1 | . . . 1 Parts Lost 1 | . . . 1 Power . | . . . . Propulsion . | . . . . Utility . | . . . . Weapon 1 | . . . 1 Highest Loss Streak 1 | . . . 1 To Critical Strikes . | . . . . Average Backups 1 | . . . 2 Power . | . . . . Propulsion . | . . . . Utility . | . . . 1 Weapon . | . . . . Tool/Special . | . . . . Unused Backups 3 | . . . 3 Power . | . . . . Propulsion . | . . . . Utility 3 | . . . 3 Weapon . | . . . . Tool/Special . | . . . . Average Slot Usage (%) 5 | . . 3 9 Impact Weapon 5 | . . 3 9 Peak Build Rating 7 | . . 1 7 Average Rating . | . . . 1 On Entrance . | . . . 1 Avg Prop Armor Cover (%) . | . . . . Naked Turns 74 | . 53 9 12 Heaviest Build 2 | . . 2 2 Greatest Support 3 | 3 3 3 3 Greatest Overweight (x) . | . . . . Average Overweight (x) . | . . . . Largest Inventory Capacity 5 | 5 5 5 5 Average Capacity 5 | 5 5 5 5 Most Carried 4 | . . . 4 Average Carried 1 | . . . 2 Final Capacity 5 | 5 5 5 5 Final Carried 4 | . . . 4 Class Distribution -------------------- 100% | Mutant Dominant Class ---------------- Mutant | -10/Materials Mutant | -9/Materials Mutant | -9/Storage Resources | -11 -10 -9 -9 ----------- Run | Yrd Mat Mat Sto Matter Collected 173 | 108 . . 65 Remotely . | . . . . Salvage Created 45 | . . . 45 Parts 6 | . . . 6 Haulers Intercepted . | . . . . Recyclers Shooed . | . . . . Parts Field Recycled . | . . . . Retrieved Matter . | . . . . Parts Self-Destructed . | . . . . Prevented . | . . . . Parts Restored . | . . . . Kills | -11 -10 -9 -9 ------- Run | Yrd Mat Mat Sto Combat Hostiles Destroyed . | . . . . Classes Destroyed 2 | . . . 2 Builder 1 | . . . 1 Mechanic 1 | . . . 1 Best Kill Streak 2 | . . . 2 Combat Bots Only . | . . . . Max Kills in Single Turn 1 | . . . 1 Gunslinging . | . . . . Exploded . | . . . . Melee . | . . . . Uniques/NPCs Destroyed . | . . . . Combat | -11 -10 -9 -9 -------- Run | Yrd Mat Mat Sto Hostile Shots Fired 62 | . 6 . 56 Missed 25 | . 5 . 20 Hits 37 | . 1 . 36 Projectile 37 | . 1 . 36 Critical Strikes 2 | . . . 2 Damage Taken 534 | . 11 . 523 Core 422 | . 11 . 411 Absorbed by Shields . | . . . . Core Remaining (%) 97 | 100 95 . . Volleys Fired . | . . . . Largest . | . . . . Hottest . | . . . . Shots Fired . | . . . . Gun . | . . . . Cannon . | . . . . Launcher . | . . . . Special . | . . . . Kinetic . | . . . . Thermal . | . . . . Explosive . | . . . . Electromagnetic . | . . . . Robot Hit Streak . | . . . . Robot Miss Streak . | . . . . Penetration Max . | . . . . Secondary Targets . | . . . . Shots Hit Robots 1 | . . . 1 Core Hits 1 | . . . 1 Critical Kills . | . . . . Critical Parts Destroyed . | . . . . Critical Strikes . | . . . . Melee Attacks 6 | . . 3 3 Impact 6 | . . 3 3 Slashing . | . . . . Piercing . | . . . . Sneak Attacks 1 | . . . 1 Combat Hostiles . | . . . . Follow-up Attacks . | . . . . Damage Inflicted 106 | . . . 106 Guns . | . . . . Cannons . | . . . . Explosions . | . . . . Melee 78 | . . . 78 Ramming 28 | . . . 28 Kinetic . | . . . . Thermal . | . . . . Explosive . | . . . . Electromagnetic . | . . . . Impact 78 | . . . 78 Slashing . | . . . . Piercing . | . . . . Highest Corruption . | . . . . Average Corruption . | . . . . Corruption Purged . | . . . . Corruption Blocked . | . . . . Overload Shots . | . . . . Overflow Damage 63 | . . . 63 Projectiles . | . . . . Explosions . | . . . . Melee 63 | . . . 63 Knockbacks . | . . . . Impact . | . . . . Kinetic . | . . . . Secondary . | . . . . Self-Inflicted Damage 14 | . . . 14 Shots . | . . . . Rammed 3 | . . . 3 Targets Rammed 3 | . . . 3 Kicked . | . . . . Crushed . | . . . . Highest Temperature . | . . . . Average Temperature . | . . . . Received Heat Transfer 243 | . 6 . 237 Siege Activations . | . . . . Martial Activations . | . . . . Shielding Activations . | . . . . Robots Disrupted . | . . . . Combat Hostiles . | . . . . Robots Corrupted . | . . . . Combat Hostiles . | . . . . Parts Fried 1 | . . . 1 Impact Corruptions 1 | . . . 1 Robots Melted . | . . . . Combat Hostiles . | . . . . Parts Melted . | . . . . Heat Transferred . | . . . . Parts Sabotaged . | . . . . Parts Stolen . | . . . . Parts Stripped . | . . . . Power Chain Reactions . | . . . . Alert | -11 -10 -9 -9 ------- Run | Yrd Mat Mat Sto Maximum Alert Level . | . . . . Low Security (%) 100 | 100 100 100 100 Level 1 . | . . . . Level 2 . | . . . . Level 3 . | . . . . Level 4 . | . . . . Level 5 . | . . . . High Security . | . . . . Max Security . | . . . . Peak Influence 42 | . . 1 42 Initial . | . . . . Average 7 | . . . 14 Influence Increases 78 | . . 1 77 Destroy 0b10 Robot/NC 10 | . . . 10 Successful Hack 7 | . . . 7 Disable Machine 15 | . . . 15 Destroy Structure 1 | . . 1 . Lose Combat Pursuer 45 | . . . 45 Influence Decreases 46 | . . 1 45 Time Decay 36 | . . 1 35 Lost Part 10 | . . . 10 Squads Dispatched 3 | . . . 3 Investigation 1 | . . . 1 Extermination . | . . . . Reinforcement 2 | . . . 2 Assault . | . . . . Garrison . | . . . . Intercept . | . . . . Searches Triggered . | . . . . Construction Impeded . | . . . . Haulers Reinforced . | . . . . Active Scanning Responses . | . . . . Cargo Convoy Interrupts . | . . . . Stealth | -11 -10 -9 -9 --------- Run | Yrd Mat Mat Sto Distress Signals 1 | . . . 1 Communications Jammed . | . . . . Distress Signals . | . . . . Times Spotted 19 | . 4 . 15 Peak Tracking Total 13 | . 4 . 13 Tactical Retreats 2 | . . . 2 Traps | -11 -10 -9 -9 ------- Run | Yrd Mat Mat Sto Traps Triggered 1 | . . . 1 Indirectly . | . . . . Trap Hack Attempts . | . . . . Triggered . | . . . . Disarmed . | . . . . Reprogrammed . | . . . . Reused . | . . . . Traps Extracted . | . . . . Installed . | . . . . Triggered . | . . . . Machines | -11 -10 -9 -9 ---------- Run | Yrd Mat Mat Sto Machines Disabled 1 | . . . 1 Max in Single Turn 1 | . . . 1 Machines Repaired . | . . . . Machines Dismantled . | . . . . Machines Sabotaged . | . . . . Overloaded Fab Kills . | . . . . Hacking | -11 -10 -9 -9 --------- Run | Yrd Mat Mat Sto Machines Accessed 3 | . 1 . 2 Terminals 3 | . 1 . 2 Fabricators . | . . . . Repair Stations . | . . . . Recycling Units . | . . . . Scanalyzers . | . . . . Garrison Access . | . . . . Total Hacks 7 | . 1 . 6 Successful 3 | . 1 . 2 Failed 4 | . . . 4 Catastrophic . | . . . . Database Lockouts . | . . . . Manual . | . . . . Terminals 7 | . 1 . 6 Fabricators . | . . . . Repair Stations . | . . . . Recycling Units . | . . . . Scanalyzers . | . . . . Garrison Access . | . . . . Terminal Hacks 3 | . 1 . 2 Open Door 2 | . . . 2 Zone Layout 1 | . 1 . . Fabricator Hacks . | . . . . Repair Station Hacks . | . . . . Recycling Unit Hacks . | . . . . Scanalyzer . | . . . . Garrison Access Hacks . | . . . . Unauthorized Hacks . | . . . . Terminals . | . . . . Fabricators . | . . . . Repair Stations . | . . . . Recycling Units . | . . . . Scanalyzers . | . . . . Garrison Access . | . . . . Data Cores Recovered . | . . . . Used . | . . . . Hacking Detections 1 | . . . 1 Full Trace Events . | . . . . Feedback Events . | . . . . Feedback Blocked . | . . . . Robot Schematics Acquired . | . . . . Robots Built . | . . . . Authchips . | . . . . Time . | . . . . Total Robot Build Rating . | . . . . Part Schematics Acquired . | . . . . Parts Built . | . . . . Authchips . | . . . . Time . | . . . . Total Part Build Rating . | . . . . Part Studies Acquired . | . . . . Parts Repaired . | . . . . Time . | . . . . Parts Recycled . | . . . . Recycled Matter . | . . . . Retrieved Matter . | . . . . Retrieved Components . | . . . . Parts Scanalyzed . | . . . . Part Schematics Acquired . | . . . . Parts Damaged . | . . . . Bothacking | -11 -10 -9 -9 ------------ Run | Yrd Mat Mat Sto Used RIF Installer . | . . . . Robots Hacked . | . . . . Non-combat . | . . . . Combat . | . . . . Robot Hacks Applied . | . . . . Relay Couplers Released . | . . . . Fabnet Peak Effective % . | . . . . Robots Rewired . | . . . . Allies Hacked . | . . . . Hacks Repelled . | . . . . Allies | -11 -10 -9 -9 -------- Run | Yrd Mat Mat Sto Total Allies . | . . . . Largest Group . | . . . . Highest-Rated Group . | . . . . Highest-Rated Ally . | . . . . Total Orders . | . . . . Ally Attacks . | . . . . Total Damage . | . . . . Kills . | . . . . Allies Corrupted . | . . . . Allies Melted . | . . . . Intel | -11 -10 -9 -9 ------- Run | Yrd Mat Mat Sto Active Infowar (turns) . | . . . . Robot Analysis Total . | . . . . Derelict Logs Recovered . | . . . . Drone Launches . | . . . . Drone Recoveries . | . . . . Exploration | -11 -10 -9 -9 ------------- Run | Yrd Mat Mat Sto Turns Passed 174 | 10 53 24 87 Spaces Moved 293 | 19 106 28 140 Core 293 | 19 106 28 140 Treads . | . . . . Legs . | . . . . Wheels . | . . . . Hover . | . . . . Flight . | . . . . Fastest Speed 50 | 50 50 50 50 Average Speed 50 | 50 50 50 50 Slowest Speed 50 | 50 50 50 50 Overloaded Moves . | . . . . Propulsion Burnouts . | . . . . Robots Hopped . | . . . . Potential Cave-ins . | . . . . Cave-ins Triggered . | . . . . Exploration Rate (%) 22 | 3 40 5 40 Regions Visited 3 Branch Regions 1 Pre-discovered Areas . | . . . . Known Exits Taken . | . . . . Unknown Exits Taken 3 | 1 1 1 . Scrap Searched . | . . . . Spaces Dug 1 | . . 1 . Terrain Destroyed 1 | . . 1 . Melee 1 | . . 1 . Projectile . | . . . . AOE . | . . . . Terrain Rammed . | . . . . Walls Destroyed . | . . . . Machines Disabled . | . . . . Actions | -11 -10 -9 -9 --------- Run | Yrd Mat Mat Sto Total 305 | 18 105 31 151 Wait . | . . . . Move 290 | 18 105 27 140 Hop . | . . . . Pick Up 3 | . . . 3 Fast Attach 2 | . . 1 1 Attach . | . . . . Detach 1 | . . . 1 Swap . | . . . . Drop . | . . . . Fire . | . . . . Melee 6 | . . 3 3 Ram 3 | . . . 3 Kick . | . . . . Crush . | . . . . Escape Stasis . | . . . . Rewire . | . . . . Trap . | . . . . Miscellaneous . | . . . . Route ------- -11/Scrapyard -10/Materials -9/Materials -9/Storage History --------- Turn | Location | Event 4 | -11/Scrapyard | Discovered new exit (range 15) 11 | -11/Scrapyard | Entered Materials 63 | -10/Materials | Discovered new exit (range 3) 64 | -10/Materials | Entered another Materials area 64 | -9/Materials | Evolved 2 slots: Propulsion x1, Utility x1 84 | -9/Materials | Discovered new exit (range 9) 88 | -9/Materials | Entered Storage 137 | -9/Storage | Found Prototype Protection 157 | -9/Storage | Core integrity fell below 50% 170 | -9/Storage | Core integrity fell below 20% 175 | -9/Storage | Destroyed by Y-45 Defender with Heavy Assault Rifle Last Messages --------------- 00149_ M-13 Machinist destroyed. 00152_ Acquired 25 matter. 00152_ Critical hit (Burn: +37). 00152_ Slammed into U-05 Engineer. 00152_ U-05 Engineer destroyed. 00153_ Acquired 20 matter. 00155_ Slammed into G-34 Mercenary. 00156_ Destabilizing: Core damaged (-12). 00159_ U-05 Engineer destroyed. 00159_ R-06 Scavenger collects Structural Scanner. 00162_ O-16 Technician: "IFF HANDSHAKE FAILED. SECURING TERMINAL." 00162_ R-06 Scavenger collects Lgt. Ion Engine. 00163_ Hammer destroyed. 00163_ C-30 ARC bursts open, deploying its payload. 00163_ G-47 Trooper unfolds itself. 00163_ G-34 Mercenary unfolds itself. 00166_ Acquired 20 matter. 00166_ R-06 Scavenger collects Wheel. 00169_ ALERT: Hostiles spotted, dispatching reinforcements to Terminal S010. Map ----- +----------------------------------------------------+ | | | | | | | ???????????????????????????????????????????? | | ???????????????????????????????????????????? | | ???????????????????????????????????????????? | | ???????????????????????????????????????????? | | ???????????????????????????????????????????? | | ???????????????????????????????????????????? | | ???????????????????????????????????????????? | | ???????????????????????????????????????????? | | ???????????????????????????????????????????? | | ???????????????????????????????????????????? | | ???????????????????#####???????????????????? | | ??????????????????? #???????????????????? | | ??????????????????? ????????????????????? | | ?????????????????"" ????????????????????? | | ??????????????? """ ?????????????????????? | | ??????????????? ?????????????????????? | | ????????????????""" ??????????????????????? | | ?????##"""##????""" ??????????????????????? | | ?????# T#?????"" ???????????????????????? | | ?????? #?????? ???????????????????????? | | ########+#########+#########+##### #???? | | Y k a #???? | | a @ Y #???? | | g k #???? | | ##############a################### #???? | | ?????????????# #???????????????????????????? | | ?????????????# #???????????????????????????? | | ?????????????#!#???????????????????????????? | | ?????????????#!#???????????????????????????? | | ?????????????# #???????????????????????????? | | ?????????????#=#???????????????????????????? | | ?????????????#=#???????????????????????????? | | ?# ?????????#=#???????????????????????????? | | ?? ????????#=#???????????????????????????? | | ???? !????#### ##??????????????????????????? | | ######/#### #??????????????????????????? | | # #??????????????????????????? | | # #??????????????????????????? | | # #??????????????????????????? | | ######+#### #??????????????????????????? | | ??????????## ##??????????????????????????? | | ???????????# #???????????????????????????? | | ???????????# #???###?????????????????????? | | ???????????# #???# #?????????????????????? | | ???????????# #???# ##????????????????????? | | ???????????# #???# T#????????????????????? | | ???????????# #####"#####?????????????????? | +----------------------------------------------------+ Best States ------------- Heat Dissipation 28 Energy Generation 5 Energy Capacity 100 Matter Stores 264 Matter Capacity 300 Sight Range 16 Terrain Scan Density 10 Evasion (%) 50 Item Schematics ----------------- None Robot Schematics ------------------ None Fabricated ------------ Nothing Repaired ---------- Nothing Studied --------- None Alien Tech Used ----------------- None Achievements -------------- None Challenges ------------ None Game ------ Seed VortexTargetingSource Manual? 0 Play Time 00:03:04 Cumulative 1110.3 hours Start 2026.01.24 @ 21:26:29 End 2026.01.24 @ 21:28:29 Sessions 1 Manual Loads 0 Difficulty Rogue Special Mode None Game No. 350 Rogue 348 Adventurer 2 Explorer 0 Win Type - Total 83 Types 23/19/19/1/1/1/14/2/1/2 Lore% 97 Gallery% 95 Achievement% 86 Wizard Run 0 Options --------- Layout 0 ASCII 0 Keyboard 1 Movement Numpad Keybinds 0 Fullscreen 1 Font 24/Smallcaps Map View 76x50 Zoom Use 0% Tactical HUD 1 Map Filters NONE Filters NONE Steam 1 RUN: 3d5d8ff4-6ec9-4a9e-a93b-3415a13976dd